bitfinex-derivatives/quotes_ETHF0:USTF0_20210401
["timestamp","ask_amount","ask_price","bid_price","bid_amount"]
[1617315673077,94.5901,1962.6,1962.5,2.90695]
[1617315674879,14.2479,1962.6,1962.5,2.90695]
[1617315676285,14.2479,1962.6,1962.5,63.77395]
[1617315679288,14.2479,1962.6,1962.5,2.90695]
[1617315681688,44.2479,1962.6,1962.5,2.90695]
[1617315682993,44.30739141,1962.6,1962.5,2.90695]
[1617315685893,44.2479,1962.6,1962.5,2.90695]
[1617315686093,44.2479,1962.6,1961.1,82.8447]
[1617315686393,46.2479,1962.6,1961.1,1.0]
[1617315686594,76.4115,1961.3,1961.1,1.0]
[1617315686794,14.0858,1961.2,1961.1,1.0]
[1617315687293,28.4438,1961.2,1961.1,1.0]
[1617315687493,42.7384,1961.2,1961.1,3.90695]
[1617315692811,42.7384,1961.2,1961.1,5.39445]
[1617315695816,42.7384,1961.2,1961.1,3.90695]
[1617315701820,42.7384,1961.2,1961.1,2.90695]
[1617315703122,42.7384,1961.2,1961.1,3.90695]
[1617315704836,42.5981,1961.2,1961.1,3.90695]
[1617315720944,121.2135,1961.2,1961.1,3.90695]
[1617315721846,122.3856,1961.2,1961.1,3.90695]
[1617315723152,121.2135,1961.2,1961.1,3.90695]
[1617315723350,121.2135,1961.2,1961.1,2.90695]
[1617315723748,121.2135,1961.2,1961.1,3.90695]
[1617315731565,122.2897,1961.2,1961.1,3.90695]
[1617315735070,124.2897,1961.2,1961.1,3.90695]
[1617315735370,154.2897,1961.2,1961.1,3.90695]
[1617315735770,152.2897,1961.2,1961.1,3.90695]
[1617315737071,121.2135,1961.2,1961.1,3.90695]
[1617315741980,151.2135,1961.2,1961.1,3.90695]
[1617315742178,121.2135,1961.2,1961.1,3.90695]
[1617315743380,151.2135,1961.2,1961.1,3.90695]
[1617315745083,153.2135,1961.2,1961.1,3.90695]
[1617315745281,151.2135,1961.2,1961.1,3.90695]
[1617315745482,121.2135,1961.2,1961.1,2.90695]
[1617315746084,121.2135,1961.2,1961.1,3.90695]
[1617315751585,151.2135,1961.2,1961.1,3.90695]
[1617315751786,121.2135,1961.2,1961.1,3.90695]
[1617315753587,42.5981,1961.2,1961.1,3.90695]
[1617315754590,32.1731,1961.2,1961.1,3.90695]
[1617315755189,18.0873,1961.2,1961.1,3.90695]
[1617315756091,7.522,1961.2,1961.1,3.90695]
[1617315756390,2.0946,1961.2,1961.1,3.90695]
[1617315756992,64.011,1961.9,1961.1,3.90695]
[1617315758098,64.011,1961.9,1961.8,2.90695]
[1617315758296,64.011,1961.9,1961.8,4.31585]
[1617315765308,78.5282,1961.9,1961.8,2.90695]
[1617315780429,78.54302571,1961.9,1961.8,2.90695]
[1617315781630,78.5282,1961.9,1961.8,2.90695]
[1617315781928,78.54302033,1961.9,1961.8,2.90695]
[1617315782630,78.55783166,1961.9,1961.8,2.90695]
[1617315783230,78.67638679,1961.9,1961.8,2.90695]
[1617315785332,78.82452729,1961.9,1961.8,2.90695]
[1617315785532,78.67637263,1961.9,1961.8,2.90695]
[1617315785934,78.82453378,1961.9,1961.8,2.90695]
[1617315786135,14.81353378,1961.9,1961.8,2.90695]
[1617315786534,17.72048378,1961.9,1961.5,2.90695]
[1617315786736,17.89805909,1961.9,1961.5,2.90695]
[1617315787036,0.05923181,1961.6,1961.5,2.90695]
[1617315787235,1.55953181,1961.6,1961.5,2.90695]
[1617315788337,2.58693181,1961.6,1961.5,2.90695]
[1617315788636,37.49388181,1961.6,1961.5,2.90695]
[1617315788841,7.90824853,1961.6,1961.5,2.90695]
[1617315790137,7.43465,1961.6,1961.5,2.90695]
[1617315791938,7.90819188,1961.6,1961.5,2.90695]
[1617315793442,37.90819188,1961.6,1961.5,2.90695]
[1617315794840,7.90819188,1961.6,1961.5,2.90695]
[1617315795342,5.90819188,1961.6,1961.5,2.90695]
[1617315795744,4.40789188,1961.6,1961.5,2.90695]
[1617315795945,6.40789188,1961.6,1961.5,2.90695]
[1617315796546,4.40789188,1961.6,1961.5,2.90695]
[1617315796749,0.47354188,1961.6,1961.5,2.90695]
[1617315797149,0.14796339,1961.6,1961.5,2.90695]
[1617315797550,0.05918088,1961.6,1961.5,2.90695]
[1617315798353,0.02959365,1961.6,1961.5,2.90695]
[1617315799852,0.05918219,1961.6,1961.5,2.90695]
[1617315800554,0.02959712,1961.6,1961.5,2.90695]
[1617315801253,0.05920164,1961.6,1961.5,2.90695]
[1617315801453,0.0296016,1961.6,1961.5,2.90695]
[1617315802256,0.05919749,1961.6,1961.5,2.90695]
[1617315803258,0.02960106,1961.6,1961.5,2.90695]
[1617315803661,0.05919869,1961.6,1961.5,2.90695]
[1617315808563,0.14841691,1961.6,1961.5,2.90695]
[1617315809164,0.29683284,1961.6,1961.5,2.90695]
[1617315810166,0.47487046,1961.6,1961.5,2.90695]
[1617315813369,0.29677146,1961.6,1961.5,2.90695]
[1617315814471,0.4749043,1961.6,1961.5,2.90695]
[1617315815772,0.71222884,1961.7,1961.5,2.90695]
[1617315815972,0.47480807,1961.6,1961.5,2.90695]
[1617315817873,1.73105709,1961.7,1961.5,2.90695]
[1617315818674,0.47464721,1961.6,1961.5,2.90695]
[1617315820376,1.73089576,1961.7,1961.5,2.90695]
[1617315820876,0.47449248,1961.6,1961.5,2.90695]
[1617315825286,0.71196695,1961.7,1961.5,2.90695]
[1617315825593,0.47465552,1961.6,1961.5,2.90695]
[1617315827883,1.73826897,1961.7,1961.5,2.90695]
[1617315828483,0.47465729,1961.6,1961.5,2.90695]
[1617315828896,1.73803601,1961.7,1961.5,2.90695]
[1617315829297,0.47460668,1961.6,1961.5,2.90695]
[1617315829585,1.73803601,1961.7,1961.5,2.90695]
[1617315833089,0.71183601,1961.7,1961.5,2.90695]
[1617315834289,0.71183601,1961.7,1961.6,78.2938]
[1617315834990,14.79097057,1961.8,1961.6,78.2938]
[1617315835190,0.4746099,1961.7,1961.6,78.2938]
[1617315835593,14.79097057,1961.8,1961.6,78.2938]
[1617315836017,0.47472267,1961.7,1961.6,78.2938]
[1617315836407,0.77147974,1961.7,1961.6,78.2938]
[1617315836795,0.29675707,1961.7,1961.6,78.2938]
[1617315838594,0.14841199,1961.7,1961.5,2.90695]
[1617315838896,0.05937731,1961.6,1961.5,85.12015]
[1617315839394,0.0890662,1961.6,1961.5,85.12015]
[1617315839696,0.02968889,1961.6,1961.5,85.12015]
[1617315840197,0.01484933,1961.6,1961.5,85.12015]
[1617315840396,0.04454834,1961.6,1961.5,85.12015]
[1617315840599,0.04454834,1961.6,1961.5,2.90695]
[1617315840798,0.02969901,1961.6,1961.5,2.90695]
[1617315841200,0.05937837,1961.6,1961.5,2.90695]
[1617315841901,0.1484384,1961.6,1961.5,2.90695]
[1617315842101,0.2967512,1961.6,1961.5,2.90695]
[1617315842502,0.14840569,1961.6,1961.5,2.90695]
[1617315842906,0.05937668,1961.6,1961.5,2.90695]
[1617315843105,14.3759834,1961.8,1961.5,2.90695]
[1617315843304,14.3759834,1961.8,1961.6,57.3567]
[1617315843505,0.01485409,1961.7,1961.6,57.3567]
[1617315843904,12.15226226,1961.9,1961.6,59.3567]
[1617315844105,3.95246226,1961.9,1961.6,59.3567]
[1617315844905,3.95246226,1961.9,1961.8,2.90695]
[1617315845307,10.15096226,1962.0,1961.8,2.90695]
[1617315845912,1.95116226,1962.0,1961.8,2.90695]
[1617315846114,1.95116226,1962.0,1961.9,2.0]
[1617315846422,1.11066226,1962.0,1961.9,3.6013]
[1617315846613,65.6121137,1962.7,1961.9,3.6013]
[1617315847012,64.5015137,1962.7,1962.6,2.90695]
[1617315847314,0.47600768,1962.7,1962.6,4.26565]
[1617315847514,0.47600768,1962.7,1962.6,74.44205]
[1617315850417,0.71401153,1962.9,1962.6,74.44205]
[1617315850721,0.29752625,1962.7,1962.6,74.44205]
[1617315851321,0.29761803,1962.8,1962.6,4.26565]
[1617315851824,0.29769887,1962.9,1962.6,4.26565]
[1617315852321,0.29769887,1962.9,1962.8,76.6305]
[1617315852523,0.71304161,1963.5,1962.8,76.6305]
[1617315853125,0.71304161,1963.5,1963.4,4.22155]
[1617315854323,14.9051,1963.5,1963.4,4.22155]
[1617315854724,16.43361574,1963.5,1963.4,4.22155]
[1617315856532,15.7205942,1963.5,1963.4,4.22155]
[1617315857028,15.7205942,1963.5,1963.4,2.90695]
[1617315857427,16.7535942,1963.5,1961.9,71.2994]
[1617315857629,71.3143,1962.4,1961.9,71.2994]
[1617315857828,14.5471,1962.3,1961.9,71.2994]
[1617315858129,16.139,1962.3,1961.9,71.2994]
[1617315858329,44.8922,1962.3,1961.9,71.2994]
[1617315859132,44.8922,1962.3,1962.2,2.90695]
[1617315865142,47.79915,1962.3,1962.2,2.90695]
[1617315865740,48.51037298,1962.3,1962.2,2.90695]
[1617315866839,45.60342298,1962.3,1962.2,2.90695]
[1617315867240,47.79915,1962.3,1962.2,2.90695]
[1617315871744,48.5101425,1962.3,1962.2,2.90695]
[1617315872346,47.79915,1962.3,1962.2,2.90695]
[1617315873048,48.50977617,1962.3,1962.2,2.90695]
[1617315873744,49.53897617,1962.3,1962.2,2.90695]
[1617315874146,48.82835,1962.3,1962.2,2.90695]
[1617315874853,78.82835,1962.3,1962.2,0.12485]
[1617315875455,82.0128725,1962.3,1961.1,1.0]
[1617315875849,0.71048795,1961.8,1961.1,1.0]
[1617315876084,2.00638795,1961.8,1961.1,1.0]
[1617315876277,3.0315,1961.7,1961.1,1.0]
[1617315876462,13.787,1961.6,1961.1,1.0]
[1617315876848,42.0457,1961.6,1961.1,1.0]
[1617315877449,42.0457,1961.6,1961.5,2.90695]
[1617315879349,44.95265,1961.6,1961.5,2.90695]
[1617315880055,42.0457,1961.6,1961.5,2.90695]
[1617315884156,43.4585,1961.6,1961.5,2.90695]
[1617315885892,44.4651,1961.6,1961.5,2.90695]
[1617315886058,43.4585,1961.6,1961.5,2.90695]
[1617315889063,44.478,1961.6,1961.5,2.90695]
[1617315890671,43.0652,1961.6,1961.5,2.90695]
[1617315891672,45.97215,1961.6,1961.5,2.90695]
[1617315893574,44.95265,1961.6,1961.5,2.90695]
[1617315895578,42.0457,1961.6,1961.5,2.90695]
[1617315902518,115.683,1961.6,1961.5,2.90695]
[1617315903305,42.0457,1961.6,1961.5,2.90695]
[1617315903511,32.9235,1961.6,1961.5,3.91595]
[1617315903692,32.9235,1961.6,1961.5,4.90695]
[1617315903892,27.3095,1961.6,1961.5,4.90695]
[1617315904090,22.317,1961.6,1961.5,4.90695]
[1617315904791,13.0479,1961.6,1961.5,4.90695]
[1617315904994,4.2712,1961.6,1961.5,4.90695]
[1617315905291,75.8408,1962.5,1961.5,4.90695]
[1617315905492,75.8408,1962.5,1961.9,84.7355]
[1617315905693,75.8408,1962.5,1962.4,4.14545]
[1617315909400,75.8408,1962.5,1962.4,2.90695]
[1617315910345,33.61690881,1962.8,1962.4,2.90695]
[1617315910720,0.70969165,1962.6,1962.4,2.90695]
[1617315911002,2.35253954,1962.6,1962.4,2.90695]
[1617315911201,2.35253954,1962.6,1961.0,82.0134]
[1617315911401,0.94550749,1962.5,1961.0,82.0134]
[1617315911610,82.0217,1961.7,1961.0,82.0134]
[1617315911811,82.0217,1961.7,1961.6,2.90695]
[1617315912601,2.90695,1962.1,1961.6,2.90695]
[1617315912800,0.7093434,1962.3,1961.7,74.7021]
[1617315913203,74.7021,1962.4,1961.7,74.7021]
[1617315913805,74.7021,1962.4,1962.3,2.90695]
[1617315922117,75.41188141,1962.4,1962.3,2.90695]
[1617315922517,74.7021,1962.4,1962.3,2.90695]
[1617315922816,75.41228771,1962.4,1962.3,2.90695]
[1617315925148,74.7021,1962.4,1962.3,2.90695]
[1617315928222,13.7422,1962.5,1962.3,2.90695]
[1617315930026,16.64915,1962.5,1962.3,2.90695]
[1617315931027,17.35881418,1962.5,1962.3,2.90695]
[1617315932533,74.0781,1962.4,1962.3,2.90695]
[1617315933532,74.78828651,1962.4,1962.3,2.90695]
[1617315933931,74.0781,1962.4,1962.3,2.90695]
[1617315934132,74.78813134,1962.4,1962.0,2.90695]
[1617315934331,0.71003134,1962.4,1962.0,2.90695]
[1617315934533,1.52248419,1962.3,1962.0,2.90695]
[1617315934834,79.0769,1962.1,1962.0,2.90695]
[1617315935243,80.5112,1962.1,1962.0,2.90695]
[1617315936160,83.41815,1962.1,1962.0,2.90695]
[1617315938037,4.34125,1962.1,1962.0,2.90695]
[1617315938637,5.05088883,1962.1,1962.0,2.90695]
[1617315939438,4.34125,1962.1,1962.0,2.90695]
[1617315939840,5.05088126,1962.1,1962.0,2.90695]
[1617315940745,3.61658126,1962.1,1962.0,2.90695]
[1617315941044,2.90695,1962.1,1962.0,2.90695]
[1617315941644,85.0961,1962.0,1960.7,63.831]
[1617315942245,85.0961,1962.0,1961.9,2.90695]
[1617315942848,86.28482794,1962.0,1961.9,2.90695]
[1617315944052,85.0961,1962.0,1961.9,2.90695]
[1617315944250,86.2861378,1962.0,1961.9,2.90695]
[1617315944449,89.1930878,1962.0,1961.9,2.90695]
[1617315944949,88.00305,1962.0,1961.9,2.90695]
[1617315945349,2.90695,1962.0,1961.9,2.90695]
[1617315945550,70.2219,1961.9,1961.1,1.0]
[1617315945986,0.71438624,1961.4,1961.1,1.0]
[1617315946165,1.84368624,1961.4,1961.1,1.0]
[1617315946391,4.75063624,1961.4,1961.3,2.90695]
[1617315946588,4.03625,1961.4,1961.3,2.90695]
[1617315946971,5.81045719,1961.4,1961.3,2.90695]
[1617315948168,5.81045719,1961.4,1961.3,3.93615]
[1617315948365,5.81045719,1961.4,1961.3,2.90695]
[1617315948558,2.90350719,1961.4,1961.3,2.90695]
[1617315948760,1.77420719,1961.4,1961.3,2.90695]
[1617315949290,1.20112961,1961.5,1961.3,2.90695]
[1617315949291,2.9769597,1961.5,1961.3,2.90695]
[1617315949463,0.82266268,1961.4,1961.3,2.90695]
[1617315949859,2.15462918,1961.5,1961.3,2.90695]
[1617315949860,1.53877082,1961.5,1961.3,2.90695]
[1617315950961,0.71548812,1961.4,1961.3,2.90695]
[1617315951262,1.77697637,1961.5,1961.3,2.90695]
[1617315951872,0.71554557,1961.4,1961.3,2.90695]
[1617315952266,1.77705888,1961.5,1961.3,2.90695]
[1617315953268,0.95438267,1961.4,1961.3,2.90695]
[1617315957472,16.24157834,1961.6,1961.3,2.90695]
[1617315958574,15.23557834,1961.6,1961.3,2.90695]
[1617315958773,15.23557834,1961.6,1961.5,0.88281564]
[1617315959175,14.0426,1961.6,1961.5,0.88281564]
[1617315963680,14.0426,1961.6,1961.5,2.30341564]
[1617315963883,14.99614352,1961.6,1961.5,2.30341564]
[1617315965187,14.75792086,1961.6,1961.5,2.30341564]
[1617315965592,14.0426,1961.6,1961.5,2.30341564]
[1617315965787,14.0426,1961.6,1961.5,4.30341564]
[1617315966249,4.7735,1961.6,1961.5,4.30341564]
[1617315966387,0.71586644,1962.1,1961.5,4.30341564]
[1617315966587,0.95448858,1962.3,1961.5,4.30341564]
[1617315966910,0.95448858,1962.3,1962.0,4.00375]
[1617315967119,0.95393158,1962.6,1962.3,71.36]
[1617315968188,61.84301458,1962.7,1962.3,71.36]
[1617315968691,61.84301458,1962.7,1962.6,2.90695]
[1617315968890,60.8889,1962.7,1962.6,4.06605]
[1617315972994,52.3357,1962.7,1962.6,4.06605]
[1617315976106,52.3357,1962.7,1962.6,2.90695]
[1617315978302,52.81150349,1962.7,1962.6,2.90695]
[1617315980906,0.47580349,1962.7,1962.6,2.90695]
[1617315981107,2.90695,1962.9,1962.6,2.90695]
[1617315981306,3.86061285,1962.9,1962.6,2.90695]
[1617315981810,0.95354843,1962.8,1962.6,2.90695]
[1617315984006,0.95327968,1962.7,1962.6,2.90695]
[1617315984208,0.95327968,1962.7,1962.5,60.65]
[1617315984409,2.60987968,1962.7,1961.2,2.0]
[1617315984652,60.6738,1962.4,1961.7,60.6738]
[1617315985029,60.6738,1962.4,1962.2,2.90695]
[1617315985209,2.15352097,1962.3,1962.2,2.90695]
[1617315985439,3.50062097,1962.3,1962.2,2.90695]
[1617315986709,2.15352097,1962.3,1962.2,2.90695]
[1617315986912,1.19100093,1962.5,1962.4,2.90695]
[1617315986913,3.86009749,1962.5,1962.4,2.90695]
[1617315987810,2.90695,1962.5,1962.4,2.90695]
[1617315988010,3.86052388,1962.5,1962.4,2.90695]
[1617315988210,3.86052388,1962.5,1962.4,75.78895]
[1617315988911,4.09896638,1962.5,1962.4,75.78895]
[1617315991617,2.90695,1962.5,1962.4,75.78895]
[1617315994920,4.09849338,1962.5,1962.4,75.78895]
[1617315999228,2.90695,1962.5,1962.4,75.78895]
[1617316000355,4.09900704,1962.5,1962.4,75.78895]
[1617316000638,1.19224314,1962.6,1962.4,75.78895]
[1617316000831,14.2187,1962.5,1962.4,75.78895]
[1617316001032,15.17266326,1962.5,1962.4,75.78895]
[1617316001533,15.02129919,1962.5,1962.4,75.78895]
[1617316007241,17.92824919,1962.5,1962.4,75.78895]
[1617316007442,18.88246305,1962.5,1962.4,2.90695]
[1617316008145,15.97551305,1962.5,1962.4,2.90695]
[1617316008746,75.24341305,1962.5,1962.4,2.90695]
[1617316009344,74.28919919,1962.5,1962.4,2.90695]
[1617316010858,75.24339341,1962.5,1962.4,2.90695]
[1617316011348,78.15034341,1962.5,1962.4,2.90695]
[1617316012646,77.19614919,1962.5,1962.4,2.90695]
[1617316013046,78.15008175,1962.5,1962.4,2.90695]
[1617316016057,77.19614919,1962.5,1962.4,2.90695]
[1617316016456,77.19614919,1962.5,1962.0,78.0189]
[1617316016656,62.1354,1962.1,1961.5,62.1354]
[1617316016857,1.1815,1962.1,1961.1,1.0]
[1617316017056,62.1576,1961.5,1961.1,1.0]
[1617316017357,63.5352,1961.5,1961.4,2.90695]
[1617316017592,64.01107032,1961.5,1961.4,2.90695]
[1617316018058,63.5352,1961.5,1961.4,2.90695]
[1617316018277,1.3776,1961.5,1961.4,2.90695]
[1617316019359,4.28455,1961.5,1961.4,2.90695]
[1617316023366,4.75960983,1961.5,1961.4,2.90695]
[1617316026871,4.75960983,1961.5,1961.4,2.88695]
[1617316028869,3.38200983,1961.5,1961.4,2.88695]
[1617316029771,29.61354228,1961.6,1961.4,2.88695]
[1617316029971,29.61354228,1961.6,1961.4,62.41825]
[1617316030971,29.1385,1961.6,1961.4,62.41825]
[1617316032773,29.43544432,1961.6,1961.4,62.41825]
[1617316033781,0.29690057,1961.5,1961.4,62.41825]
[1617316034483,29.91034679,1961.6,1961.4,62.41825]
[1617316034881,0.2967872,1961.5,1961.4,62.41825]
[1617316035582,29.43533778,1961.6,1961.4,62.41825]
[1617316040694,0.29737528,1961.5,1961.4,62.41825]
[1617316040893,1.50007528,1961.5,1961.4,62.41825]
[1617316041996,4.40702528,1961.5,1961.4,62.41825]
[1617316046200,4.40702528,1961.5,1961.4,2.88695]
[1617316046600,3.20432528,1961.5,1961.4,2.88695]
[1617316048002,0.29737528,1961.5,1961.4,2.88695]
[1617316048501,29.43616471,1961.6,1961.4,2.88695]
[1617316048902,0.05955334,1961.5,1961.4,2.88695]
[1617316049302,29.19806289,1961.6,1961.4,2.88695]
[1617316049602,29.19806289,1961.6,1961.5,61.16]
[1617316050601,29.1385,1961.6,1961.5,61.16]
[1617316052005,29.43630864,1961.6,1961.5,61.16]
[1617316053507,29.1385,1961.6,1961.5,61.16]
[1617316055009,29.1385,1961.6,1961.4,2.88695]
[1617316055408,0.05955375,1961.5,1961.4,2.88695]
[1617316055908,29.43627236,1961.6,1961.4,2.88695]
[1617316056710,77.9078517,1961.5,1961.4,2.88695]
[1617316056910,77.8483,1961.5,1961.4,2.88695]
[1617316057313,77.90785028,1961.5,1961.4,2.88695]
[1617316058112,77.8483,1961.5,1961.4,2.88695]
[1617316061121,77.90783951,1961.5,1961.4,2.88695]
[1617316062822,77.8483,1961.5,1961.4,2.88695]
[1617316064828,77.90785706,1961.5,1961.4,2.88695]
[1617316065728,77.8483,1961.5,1961.4,2.88695]
[1617316066829,78.32537915,1961.5,1961.4,2.88695]
[1617316067830,91.4996,1961.5,1961.4,2.88695]
[1617316069734,91.97683186,1961.5,1961.4,2.88695]
[1617316077341,91.97683186,1961.5,1961.4,4.42625]
[1617316077742,14.12853186,1961.5,1961.4,4.42625]
[1617316078158,14.42715514,1961.5,1961.4,4.42625]
[1617316078343,13.94992328,1961.5,1961.4,4.42625]
[1617316079246,13.6513,1961.5,1961.4,4.42625]
[1617316079746,13.95006018,1961.5,1961.4,4.42625]
[1617316080577,13.6513,1961.5,1961.4,4.42625]
[1617316081453,12.6408,1961.5,1961.4,4.42625]
[1617316081701,11.6303,1961.5,1961.4,4.42625]
[1617316081953,7.5883,1961.5,1961.4,6.42625]
[1617316082154,6.5778,1961.5,1961.4,6.42625]
[1617316082569,6.4874,1961.5,1961.4,6.42625]
[1617316083052,5.2546,1961.5,1961.4,6.42625]
[1617316083255,4.0218,1961.5,1961.4,6.42625]
[1617316083555,2.864,1961.5,1961.4,6.42625]
[1617316084277,0.3984,1961.5,1961.4,6.42625]
[1617316084495,27.7967,1961.6,1961.4,6.42625]
[1617316084665,26.0565,1961.6,1961.4,6.42625]
[1617316085257,24.3163,1961.6,1961.4,6.42625]
[1617316085959,24.2048,1961.6,1961.4,6.42625]
[1617316088561,23.9556,1961.6,1961.4,6.42625]
[1617316094589,23.9556,1961.6,1961.4,4.88695]
[1617316095372,23.9556,1961.6,1961.5,83.7375]
[1617316095972,23.98545325,1961.6,1961.5,83.7375]
[1617316096373,24.01530965,1961.6,1961.5,83.7375]
[1617316097475,24.10492359,1961.6,1961.5,83.7375]
[1617316098077,24.01532872,1961.6,1961.5,83.7375]
[1617316100884,23.98546279,1961.6,1961.5,83.7375]
[1617316101286,24.0153348,1961.6,1961.5,83.7375]
[1617316104792,23.98546623,1961.6,1961.5,83.7375]
[1617316105593,23.9556,1961.6,1961.5,83.7375]
[1617316106402,23.98546605,1961.6,1961.5,83.7375]
[1617316106594,23.9556,1961.6,1961.5,83.7375]
[1617316112302,24.0153416,1961.6,1961.5,83.7375]
[1617316115007,24.0153416,1961.6,1961.4,2.88695]
[1617316115707,23.98546983,1961.6,1961.4,2.88695]
[1617316116409,23.98546983,1961.6,1961.4,4.88695]
[1617316117214,23.9556,1961.6,1961.4,4.88695]
[1617316120712,23.9556,1961.6,1961.4,6.38135]
[1617316122626,23.9556,1961.6,1961.4,4.88695]
[1617316123514,23.9556,1961.6,1961.4,2.88695]
[1617316127020,23.98546472,1961.6,1961.4,2.88695]
[1617316128223,0.02986459,1961.5,1961.4,2.88695]
[1617316129423,61.09076459,1961.5,1961.4,2.88695]
[1617316129623,61.1206303,1961.5,1961.4,2.88695]
[1617316130027,61.09076471,1961.5,1961.4,2.88695]
[1617316130325,61.12065053,1961.5,1961.4,2.88695]
[1617316130531,0.05975053,1961.5,1961.4,2.88695]
[1617316130723,2.05975053,1961.5,1961.4,2.88695]
[1617316130924,0.05975053,1961.5,1961.4,2.88695]
[1617316131125,2.0,1961.5,1961.4,2.88695]
[1617316131525,2.71726604,1961.5,1961.4,2.88695]
[1617316131725,4.90695,1961.5,1961.2,2.90695]
[1617316132725,2.90695,1961.5,1961.2,2.90695]
[1617316133126,66.30935,1961.5,1961.3,63.4024]
[1617316133326,23.9556,1961.6,1961.2,2.90695]
[1617316133526,23.9556,1961.6,1961.5,63.3765]
[1617316133727,23.9556,1961.6,1961.5,66.28345]
[1617316135129,24.25444235,1961.6,1961.5,66.28345]
[1617316136731,24.25444235,1961.6,1961.5,2.90695]
[1617316137133,25.28584235,1961.6,1961.5,2.90695]
[1617316137334,24.40385325,1961.6,1961.5,2.90695]
[1617316137734,21.91446002,1961.6,1961.5,2.90695]
[1617316137935,19.78367856,1961.6,1961.5,2.90695]
[1617316139338,19.7538,1961.6,1961.5,2.90695]
[1617316141240,16.4741,1961.6,1961.5,2.90695]
[1617316144146,16.0341,1961.6,1961.5,2.90695]
[1617316144747,13.4932,1961.6,1961.5,2.90695]
[1617316146447,12.4697,1961.6,1961.5,2.90695]
[1617316148346,12.3699,1961.6,1961.5,2.90695]
[1617316151951,12.3147,1961.6,1961.5,2.90695]
[1617316153052,80.0334,1961.6,1961.5,2.90695]
[1617316155162,94.4857,1961.6,1961.5,2.90695]
[1617316157268,94.5453067,1961.6,1961.5,2.90695]
[1617316160064,94.5154889,1961.6,1961.5,2.90695]
[1617316161767,94.50059651,1961.6,1961.5,2.90695]
[1617316162469,26.78189651,1961.6,1961.5,2.90695]
[1617316163370,26.78189651,1961.6,1961.4,1.0477]
[1617316163769,26.767,1961.6,1961.4,1.0477]
[1617316163969,26.767,1961.6,1961.5,59.8117]
[1617316164171,26.79680593,1961.6,1961.5,62.71865]
[1617316164673,26.79680593,1961.6,1961.5,2.90695]
[1617316165072,26.82660045,1961.6,1961.5,2.90695]
[1617316165574,27.06484861,1961.6,1961.5,2.90695]
[1617316166473,26.91593013,1961.6,1961.5,2.90695]
[1617316167373,96.13783013,1961.6,1961.5,2.90695]
[1617316170175,96.04842412,1961.6,1961.5,2.90695]
[1617316171778,26.82652412,1961.6,1961.5,2.90695]
[1617316172379,26.79676068,1961.6,1961.5,2.90695]
[1617316173079,26.78188316,1961.6,1961.5,2.90695]
[1617316173381,23.06248316,1961.6,1961.5,2.90695]
[1617316173581,23.0476,1961.6,1961.5,2.90695]
[1617316173787,20.9909,1961.6,1961.5,2.90695]
[1617316174288,20.6155,1961.6,1961.5,2.90695]
[1617316175088,20.1599,1961.6,1961.5,2.90695]
[1617316175891,19.4158,1961.6,1961.5,4.90695]
[1617316176189,16.0013,1961.6,1961.5,4.90695]
[1617316178592,16.0013,1961.6,1961.5,2.90695]
[1617316184203,16.01621196,1961.6,1961.5,2.90695]
[1617316186708,16.03114084,1961.6,1961.5,2.90695]
[1617316188714,16.0162238,1961.6,1961.5,4.22525]
[1617316192125,16.0013,1961.6,1961.5,4.22525]
[1617316192523,16.0162285,1961.6,1961.5,4.22525]
[1617316194746,16.0162285,1961.6,1961.5,2.90695]
[1617316198339,16.0013,1961.6,1961.5,2.90695]
[1617316202340,15.2211,1961.6,1961.5,2.90695]
[1617316202639,12.6744,1961.6,1961.5,2.90695]
[1617316202839,10.3796,1961.6,1961.5,2.90695]
[1617316203037,8.36,1961.6,1961.5,4.90695]
[1617316203238,7.6029,1961.6,1961.5,4.90695]
[1617316203538,7.4451,1961.6,1961.5,4.90695]
[1617316203850,6.4624,1961.6,1961.5,4.90695]
[1617316204039,5.733,1961.6,1961.5,4.90695]
[1617316204338,3.4257,1961.6,1961.5,4.90695]
[1617316204538,3.1964,1961.6,1961.5,4.90695]
[1617316204837,13.7987,1962.0,1961.5,4.90695]
[1617316205045,13.0459,1962.0,1961.5,4.90695]
[1617316206841,13.0459,1962.0,1961.9,2.90695]
[1617316207044,13.0459,1962.0,1961.9,5.47745]
[1617316207442,5.7648,1962.0,1961.9,5.47745]
[1617316207643,3.9645,1962.0,1961.9,5.47745]
[1617316209344,3.8107,1962.0,1961.9,5.47745]
[1617316210445,9.786e-05,1962.6,1961.9,5.47745]
[1617316210646,0.05973047,1962.7,1962.5,63.4308]
[1617316210846,55.2989591,1962.9,1962.5,68.42725]
[1617316211048,0.14937042,1963.0,1962.8,63.4114]
[1617316211247,0.62307458,1963.4,1962.8,63.4114]
[1617316211448,0.47821278,1963.4,1962.8,63.4114]
[1617316211749,0.95642556,1963.8,1962.8,63.4114]
[1617316211750,2.47603491,1964.4,1962.8,63.4114]
[1617316211947,0.47603491,1964.4,1962.8,63.4114]
[1617316212150,0.47602363,1964.5,1962.8,63.4114]
[1617316212549,0.47599417,1964.7,1962.8,63.4114]
[1617316212950,0.475968,1964.8,1964.6,4.19895]
[1617316213351,0.4759394,1964.9,1964.6,4.19895]
[1617316213550,0.4759394,1964.9,1964.7,62.6058]
[1617316213751,2.584,1965.1,1964.7,62.6058]
[1617316213752,0.4759268,1965.0,1964.7,62.6058]
[1617316214853,2.4759268,1965.0,1964.9,2.90695]
[1617316215054,2.4759268,1965.0,1963.9,69.0683]
[1617316215252,69.0971,1964.6,1963.9,69.0683]
[1617316215553,71.0971,1964.6,1963.9,69.0683]
[1617316215852,71.57309118,1964.6,1963.9,69.0683]
[1617316216255,0.47588452,1964.5,1963.9,69.0683]
[1617316216751,13.9995,1964.4,1963.2,1.0153]
[1617316216954,13.9995,1964.4,1963.8,77.7907]